fUST/lending_fUST_20240115
["ID","MTS","AMOUNT","RATE_DAILY","PERIOD"]
[311638160,1705276244316,-500.0,0.00027671,2]
[311638162,1705276244325,-1596.22,0.00027671,2]
[311638164,1705276244334,-500.0,0.00027671,2]
[311638166,1705276244343,-500.0,0.00027671,2]
[311638168,1705276244352,-500.0,0.00027671,2]
[311638170,1705276244362,-2937.17,0.00027671,2]
[311638172,1705276244371,-4017.95,0.00027671,2]
[311638174,1705276244380,-500.0,0.00027671,2]
[311638176,1705276244389,-500.0,0.00027671,2]
[311638178,1705276244399,-500.0,0.00027671,2]
[311638180,1705276244410,-500.0,0.00027671,2]
[311638182,1705276244418,-506.8572877,0.00027671,2]
[311638184,1705276244428,-500.0,0.00027671,2]
[311638186,1705276244437,-500.0,0.00027671,2]
[311638188,1705276244446,-500.0,0.00027671,2]
[311638190,1705276244455,-329.27294652,0.00027671,2]
[311638192,1705276244465,-500.0,0.00027671,2]
[311638194,1705276244474,-781.21,0.00027671,2]
[311638196,1705276244483,-831.91,0.00027671,2]
[311638198,1705276244491,-500.0,0.00027671,2]
[311638200,1705276244500,-936.53,0.00027671,2]
[311638202,1705276244509,-600.42425379,0.00027671,2]
[311638204,1705276244519,-500.0,0.00027671,2]
[311638206,1705276244528,-500.0,0.00027671,2]
[311638208,1705276244537,-502.84066308,0.00027671,2]
[311638210,1705276244546,-500.0,0.00027671,2]
[311638212,1705276244555,-519.99430236,0.00027671,2]
[311638214,1705276244564,-500.0,0.00027671,2]
[311638216,1705276244573,-500.0,0.00027671,2]
[311638218,1705276244582,-500.0,0.00027671,2]
[311638220,1705276244591,-500.0,0.00027671,2]
[311638222,1705276244600,-500.0,0.00027671,2]
[311638224,1705276244609,-500.0,0.00027671,2]
[311638226,1705276244618,-5257.86,0.00027671,2]
[311638228,1705276244628,-500.0,0.00027671,2]
[311638230,1705276244638,-500.0,0.00027671,2]
[311638232,1705276244647,-500.0,0.00027671,2]
[311638234,1705276244657,-500.0,0.00027671,2]
[311638236,1705276244666,-500.0,0.00027671,2]
[311638238,1705276244675,-15969.2,0.00027671,2]
[311638240,1705276244685,-500.0,0.00027671,2]
[311638242,1705276244695,-25590.69,0.00027671,2]
[311638244,1705276244704,-500.0,0.00027671,2]
[311638246,1705276244713,-500.0,0.00027671,2]
[311638248,1705276244723,-500.0,0.00027671,2]
[311638249,1705276244732,-500.0,0.00027671,2]
[311638252,1705276244741,-500.0,0.00027671,2]
[311638254,1705276244750,-2084.34,0.00027671,2]
[311638256,1705276244760,-500.0,0.00027671,2]
[311638258,1705276244769,-500.0,0.00027671,2]
[311638260,1705276244778,-500.0,0.00027671,2]
[311638261,1705276244787,-500.0,0.00027671,2]
[311638263,1705276244797,-500.0,0.00027671,2]
[311638265,1705276244807,-336.65608746,0.00027671,2]
[311638268,1705276244818,-521.66517936,0.00027671,2]
[311638269,1705276244828,-500.0,0.00027671,2]
[311638271,1705276244837,-517.88552703,0.00027671,2]
[311638273,1705276244846,-256.16370604,0.00027671,2]
[311638275,1705276244856,-1353.58,0.00027671,2]
[311638277,1705276244866,-664.54,0.00027671,2]
[311638279,1705276244875,-500.0,0.00027671,2]
[311638281,1705276244884,-500.0,0.00027671,2]
[311638283,1705276244893,-493.90003531,0.00027671,2]
[311638285,1705276244904,-500.0,0.00027671,2]
[311638287,1705276244913,-218.24059673,0.00027671,2]
[311638289,1705276244922,-500.0,0.00027671,2]
[311638292,1705276244933,-500.0,0.00027671,2]
[311638294,1705276244942,-500.0,0.00027671,2]
[311638296,1705276244951,-765.87,0.00027671,2]
[311638298,1705276244960,-500.0,0.00027671,2]
[311638300,1705276244970,-500.0,0.00027671,2]
[311638302,1705276244979,-500.0,0.00027671,2]
[311638304,1705276244989,-777.02,0.00027671,2]
[311638306,1705276244998,-500.0,0.00027671,2]
[311638307,1705276245007,-1006.92575505,0.00027671,2]
[311638309,1705276245017,-500.0,0.00027671,2]
[311638311,1705276245026,-778.04,0.00027671,2]
[311638313,1705276245035,-500.0,0.00027671,2]
[311638315,1705276245046,-2641.58,0.00027671,2]
[311638317,1705276245056,-500.0,0.00027671,2]
[311638319,1705276245067,-500.0,0.00027671,2]
[311638321,1705276245076,-500.0,0.00027671,2]
[311638323,1705276245085,-500.0,0.00027671,2]
[311638325,1705276245095,-500.0,0.00027671,2]
[311638328,1705276245105,-500.0,0.00027671,2]
[311638330,1705276245114,-509.48319526,0.00027671,2]
[311638331,1705276245123,-500.0,0.00027671,2]
[311638334,1705276245133,-500.0,0.00027671,2]
[311638335,1705276245142,-500.0,0.00027671,2]
[311638338,1705276245151,-6490.46,0.00027671,2]
[311638340,1705276245162,-996.02,0.00027671,2]
[311638341,1705276245171,-500.0,0.00027671,2]
[311638343,1705276245181,-1434.97,0.00027671,2]
[311638345,1705276245190,-500.0,0.00027671,2]
[311638347,1705276245200,-502.50157674,0.00027671,5]
[311638349,1705276245210,-500.0,0.00027671,2]
[311638351,1705276245219,-500.0,0.00027671,2]
[311638353,1705276245229,-500.0,0.00027671,2]
[311638356,1705276245239,-1114.27,0.00027671,2]
[311638358,1705276245250,-7592.17,0.00027671,2]
[311638360,1705276245259,-500.0,0.00027671,2]
[311638362,1705276245268,-500.0,0.00027671,2]
[311638364,1705276245277,-500.0,0.00027671,2]
[311638365,1705276245288,-8125.67,0.00027671,2]
[311638368,1705276245298,-1480.44,0.00027671,2]
[311638370,1705276245307,-153.0,0.00027671,2]
[311638372,1705276245317,-153.0,0.00027671,2]
[311638374,1705276245326,-153.0,0.00027671,2]
[311638376,1705276245335,-153.0,0.00027671,2]
[311638377,1705276245344,-153.0,0.00027671,2]
[311638379,1705276245353,-153.0,0.00027671,2]
[311638381,1705276245363,-153.0,0.00027671,2]
[311638383,1705276245372,-153.0,0.00027671,2]
[311638386,1705276245381,-153.0,0.00027671,2]
[311638387,1705276245390,-688.18928243,0.000277,2]
[311638390,1705276245401,-500.0,0.00027843,2]
[311638391,1705276245412,-500.0,0.00027944,2]
[311638393,1705276245422,-500.0,0.00027944,2]
[311638395,1705276245431,-500.0,0.00027944,2]
[311638397,1705276245442,-500.0,0.00027945,2]
[311638399,1705276245451,-500.0,0.00027945,2]
[311638401,1705276245460,-500.0,0.00027945,2]
[311638403,1705276245470,-500.0,0.00027945,2]
[311638406,1705276245479,-500.0,0.00027945,2]
[311638407,1705276245488,-500.0,0.00027945,2]
[311638410,1705276245498,-500.0,0.00027945,2]
[311638411,1705276245507,-763.89,0.00027945,2]
[311638414,1705276245516,-317.89344166,0.00027945,2]
[311638416,1705276245526,-500.0,0.00027945,2]
[311638419,1705276245535,-1330.41,0.00027945,2]
[311638421,1705276245544,-500.0,0.00027945,2]
[311638424,1705276245552,-500.0,0.00027945,2]
[311638426,1705276245562,-573.06,0.00027945,2]
[311638430,1705276245571,-500.0,0.00027945,2]
[311638433,1705276245582,-500.0,0.00027945,2]
[311638436,1705276245591,-500.0,0.00027945,2]
[311638439,1705276245600,-500.0,0.00027945,2]
[311638443,1705276245609,-1658.0,0.00027945,2]
[311638447,1705276245619,-634.16,0.00027945,2]
[311638450,1705276245627,-500.0,0.00027945,2]
[311638453,1705276245636,-1191.06,0.00027945,2]
[311638456,1705276245645,-500.0,0.00027945,2]
[311638459,1705276245655,-500.0,0.00027945,2]
[311638462,1705276245663,-528.13,0.00027945,2]
[311638465,1705276245674,-522.26,0.00027945,2]
[311638468,1705276245683,-873.27,0.00027945,2]
[311638470,1705276245691,-500.0,0.00027945,2]
[311638473,1705276245700,-500.0,0.00027945,2]
[311638476,1705276245709,-500.0,0.00027945,2]
[311638479,1705276245717,-500.0,0.00027945,2]
[311638483,1705276245727,-500.0,0.00027945,2]
[311638485,1705276245736,-500.0,0.00027945,2]
[311638488,1705276245746,-500.0,0.00027945,2]
[311638491,1705276245755,-500.0,0.00027945,2]
[311638494,1705276245764,-500.0,0.00027945,2]
[311638496,1705276245773,-500.0,0.00027945,2]
[311638498,1705276245782,-500.0,0.00027945,2]
[311638500,1705276245791,-500.0,0.00027945,2]
[311638502,1705276245800,-500.0,0.00027945,2]
[311638504,1705276245809,-500.0,0.00027945,2]
[311638506,1705276245818,-500.0,0.00027945,2]
[311638508,1705276245828,-500.0,0.00027945,2]
[311638510,1705276245836,-500.0,0.00027945,2]
[311638512,1705276245846,-500.0,0.00027945,2]
[311638514,1705276245855,-1240.85,0.00027945,2]
[311638516,1705276245865,-500.0,0.00027945,2]
[311638518,1705276245874,-619.09681012,0.00027945,2]
[311638520,1705276245884,-500.0,0.00027945,2]
[311638522,1705276245893,-500.0,0.00027945,2]
[311638524,1705276245904,-500.0,0.00027945,2]
[311638526,1705276245913,-500.0,0.00027945,2]
[311638528,1705276245922,-500.0,0.00027945,2]
[311638538,1705276246007,-581.76926559,0.00027945,2]
[311638540,1705276246017,-500.0,0.00027945,2]
[311638543,1705276246026,-761.74,0.00027945,2]
[311638545,1705276246036,-500.0,0.00027945,2]
[311638547,1705276246045,-2904.96,0.00027945,2]
[311638549,1705276246055,-500.0,0.00027945,2]
[311638551,1705276246064,-500.0,0.00027945,2]
[311638553,1705276246073,-1534.73,0.00027945,2]
[311638555,1705276246082,-500.0,0.00027945,2]
[311638557,1705276246091,-500.0,0.00027945,2]
[311638558,1705276246100,-500.0,0.00027945,2]
[311638560,1705276246110,-1844.68,0.00027945,2]
[311638562,1705276246119,-500.0,0.00027945,2]
[311638564,1705276246128,-500.0,0.00027945,2]
[311638566,1705276246136,-500.0,0.00027945,2]
[311638568,1705276246146,-301.46968522,0.00027945,2]
[311638570,1705276246155,-500.0,0.00027945,2]
[311638572,1705276246164,-772.99,0.00027945,2]
[311638574,1705276246173,-500.0,0.00027945,2]
[311638576,1705276246182,-500.0,0.00027945,2]
[311638578,1705276246191,-500.0,0.00027945,2]
[311638580,1705276246200,-508.23488749,0.00027945,2]
[311638582,1705276246209,-500.0,0.00027945,2]
[311638584,1705276246219,-967.09,0.00027945,2]
[311638586,1705276246228,-500.0,0.00027945,2]
[311638588,1705276246237,-500.0,0.00027945,2]
[311638591,1705276246247,-500.0,0.00027945,2]
[311638592,1705276246256,-1596.22,0.00027945,2]
[311638595,1705276246266,-503.8784956,0.00027945,2]
[311638596,1705276246275,-500.0,0.00027945,2]
[311638598,1705276246284,-2937.17,0.00027945,2]
[311638601,1705276246293,-4017.95,0.00027945,2]
[311638603,1705276246302,-500.0,0.00027945,2]
[311638605,1705276246312,-508.19510463,0.00027945,2]
[311638607,1705276246323,-172.71157866,0.00027945,2]
[311638609,1705276246331,-500.0,0.00027945,2]
[311638611,1705276246341,-500.0,0.00027945,2]
[311638613,1705276246350,-781.21,0.00027945,2]
[311638615,1705276246359,-831.91,0.00027945,2]
[311638617,1705276246368,-500.0,0.00027945,2]
[311638619,1705276246377,-936.53,0.00027945,2]
[311638621,1705276246386,-500.0,0.00027945,2]
[311638623,1705276246395,-500.0,0.00027945,2]
[311638625,1705276246406,-500.0,0.00027945,2]
[311638627,1705276246415,-500.0,0.00027945,2]
[311638629,1705276246424,-583.1174725,0.00027945,2]
[311638631,1705276246434,-500.0,0.00027945,2]
[311638633,1705276246443,-247.37652584,0.00027945,2]
[311638635,1705276246453,-5257.86,0.00027945,2]
[311638637,1705276246462,-500.0,0.00027945,2]
[311638639,1705276246471,-500.0,0.00027945,2]
[311638641,1705276246480,-15969.2,0.00027945,2]
[311638643,1705276246489,-500.0,0.00027945,2]
[311638645,1705276246498,-25590.69,0.00027945,2]
[311638647,1705276246507,-500.0,0.00027945,2]
[311638648,1705276246516,-500.0,0.00027945,2]
[311638649,1705276246525,-500.0,0.00027945,2]
[311638650,1705276246534,-2084.34,0.00027945,2]
[311638651,1705276246543,-500.0,0.00027945,2]
[311638652,1705276246552,-500.0,0.00027945,2]
[311638653,1705276246561,-500.0,0.00027945,2]
[311638654,1705276246569,-500.0,0.00027945,2]
[311638655,1705276246579,-1353.58,0.00027945,2]
[311638657,1705276246587,-664.54,0.00027945,2]
[311638659,1705276246596,-500.0,0.00027945,2]
[311638661,1705276246605,-500.0,0.00027945,2]
[311638663,1705276246614,-500.0,0.00027945,2]
[311638665,1705276246624,-500.0,0.00027945,2]
[311638667,1705276246633,-500.0,0.00027945,2]
[311638669,1705276246642,-517.09868122,0.00027945,2]
[311638671,1705276246651,-765.87,0.00027945,2]
[311638673,1705276246662,-500.0,0.00027945,2]
[311638675,1705276246672,-500.0,0.00027945,2]
[311638677,1705276246681,-500.0,0.00027945,2]
[311638679,1705276246690,-777.02,0.00027945,2]
[311638681,1705276246699,-500.0,0.00027945,2]
[311638683,1705276246708,-500.0,0.00027945,2]
[311638685,1705276246717,-778.04,0.00027945,2]
[311638687,1705276246727,-2641.58,0.00027945,2]
[311638689,1705276246736,-500.0,0.00027945,2]
[311638691,1705276246744,-500.0,0.00027945,2]
[311638693,1705276246753,-500.0,0.00027945,2]
[311638695,1705276246762,-500.0,0.00027945,2]
[311638697,1705276246771,-6490.46,0.00027945,2]
[311638699,1705276246781,-996.02,0.00027945,2]
[311638700,1705276246789,-500.0,0.00027945,2]
[311638702,1705276246799,-1434.97,0.00027945,2]
[311638704,1705276246808,-500.0,0.00027945,2]
[311638706,1705276246820,-500.0,0.00027945,2]
[311638708,1705276246829,-500.0,0.00027945,2]
[311638710,1705276246838,-1114.27,0.00027945,2]
[311638712,1705276246847,-7592.17,0.00027945,2]
[311638714,1705276246858,-500.0,0.00027945,2]
[311638716,1705276246867,-502.88239032,0.00027945,2]
[311638718,1705276246876,-8125.67,0.00027945,2]
[311638720,1705276246885,-1480.44,0.00027945,2]
[311638722,1705276246894,-2041.102221,0.00028,2]
[311638724,1705276246906,-433.82,0.00028199,2]
[311638726,1705276246915,-1045.00060392,0.00028218,2]
[311638728,1705276246924,-357.82551127,0.00028219,2]
[311638730,1705276246933,-500.0,0.00028219,2]
[311638732,1705276246942,-763.89,0.00028219,2]
[311638734,1705276246951,-1330.41,0.00028219,2]
[311638736,1705276246960,-500.0,0.00028219,2]
[311638738,1705276246969,-573.06,0.00028219,2]
[311638740,1705276246978,-500.0,0.00028219,2]
[311638742,1705276246987,-1658.0,0.00028219,2]
[311638744,1705276246996,-634.16,0.00028219,2]
[311638746,1705276247006,-1191.06,0.00028219,2]
[311638748,1705276247015,-500.0,0.00028219,2]
[311638750,1705276247024,-234.14884369,0.00028219,2]
[311638752,1705276247034,-528.13,0.00028219,2]
[311638754,1705276247043,-522.26,0.00028219,2]
[311638756,1705276247053,-873.27,0.00028219,2]
[311638758,1705276247063,-500.0,0.00028219,2]
[311638760,1705276247072,-500.0,0.00028219,2]
[311638762,1705276247081,-273.15317203,0.00028219,2]
[311638764,1705276247091,-500.0,0.00028219,2]
[311638766,1705276247100,-500.0,0.00028219,2]
[311638768,1705276247110,-500.0,0.00028219,2]
[311638770,1705276247119,-500.0,0.00028219,2]
[311638772,1705276247128,-500.0,0.00028219,2]
[311638774,1705276247137,-500.0,0.00028219,2]
[311638776,1705276247146,-500.0,0.00028219,2]
[311638778,1705276247156,-1240.85,0.00028219,2]
[311638780,1705276247165,-416.6322573,0.00028219,2]
[311638782,1705276247175,-500.0,0.00028219,2]
[311638784,1705276247184,-500.0,0.00028219,2]
[311638786,1705276247193,-500.0,0.00028219,2]
[311638788,1705276247202,-500.0,0.00028219,2]
[311638790,1705276247211,-761.74,0.00028219,2]
[311638792,1705276247221,-2904.96,0.00028219,2]
[311638794,1705276247230,-500.0,0.00028219,2]
[311638795,1705276247239,-1534.73,0.00028219,2]
[311638798,1705276247248,-500.0,0.00028219,2]
[311638799,1705276247258,-500.0,0.00028219,2]
[311638801,1705276247267,-1844.68,0.00028219,2]
[311638804,1705276247277,-500.0,0.00028219,2]
[311638805,1705276247286,-500.0,0.00028219,2]
[311638807,1705276247295,-500.0,0.00028219,2]
[311638810,1705276247305,-500.0,0.00028219,2]
[311638812,1705276247315,-772.99,0.00028219,2]
[311638813,1705276247324,-500.0,0.00028219,2]
[311638814,1705276247333,-500.0,0.00028219,2]
[311638816,1705276247342,-500.0,0.00028219,2]
[311638817,1705276247350,-500.0,0.00028219,2]
[311638820,1705276247359,-967.09,0.00028219,2]
[311638822,1705276247369,-500.0,0.00028219,2]
[311638824,1705276247378,-500.0,0.00028219,2]
[311638825,1705276247387,-1596.22,0.00028219,2]
[311638827,1705276247396,-500.0,0.00028219,2]
[311638830,1705276247407,-2937.17,0.00028219,2]
[311638831,1705276247416,-4017.95,0.00028219,2]
[311638833,1705276247426,-500.0,0.00028219,2]
[311638835,1705276247434,-500.0,0.00028219,2]
[311638837,1705276247443,-781.21,0.00028219,2]
[311638839,1705276247453,-831.91,0.00028219,2]
[311638841,1705276247462,-936.53,0.00028219,2]
[311638843,1705276247471,-500.0,0.00028219,2]
[311638845,1705276247480,-500.0,0.00028219,2]
[311638847,1705276247489,-500.0,0.00028219,2]
[311638849,1705276247498,-500.0,0.00028219,2]
[311638851,1705276247507,-5257.86,0.00028219,2]
[311638853,1705276247516,-500.0,0.00028219,2]
[311638855,1705276247525,-500.0,0.00028219,2]
[311638857,1705276247535,-10246.35263445,0.00028219,2]
[311638896,1705276247893,-5722.84736555,0.00028219,2]
[311638899,1705276247905,-500.0,0.00028219,2]
[311638901,1705276247914,-25590.69,0.00028219,2]
[311638903,1705276247923,-500.0,0.00028219,2]
[311638905,1705276247932,-500.0,0.00028219,2]
[311638907,1705276247941,-2084.34,0.00028219,2]
[311638909,1705276247950,-500.0,0.00028219,2]
[311638911,1705276247959,-500.0,0.00028219,2]
[311638913,1705276247968,-500.0,0.00028219,2]
[311638915,1705276247977,-500.0,0.00028219,2]
[311638917,1705276247986,-1353.58,0.00028219,2]
[311638919,1705276247995,-664.54,0.00028219,2]
[311638920,1705276248005,-500.0,0.00028219,2]
[311638922,1705276248014,-500.0,0.00028219,2]
[311638924,1705276248023,-500.0,0.00028219,2]
[311638927,1705276248033,-500.0,0.00028219,2]
[311638929,1705276248043,-765.87,0.00028219,2]
[311638930,1705276248052,-427.47218645,0.00028219,2]
[311638933,1705276248068,-72.52781355,0.00028219,2]
[311638935,1705276248077,-500.0,0.00028219,2]
[311638937,1705276248086,-777.02,0.00028219,2]
[311638939,1705276248095,-500.0,0.00028219,2]
[311638941,1705276248103,-778.04,0.00028219,2]
[311638943,1705276248112,-2641.58,0.00028219,2]
[311638945,1705276248122,-500.0,0.00028219,2]
[311638947,1705276248131,-500.0,0.00028219,2]
[311638948,1705276248140,-500.0,0.00028219,2]
[311638949,1705276248149,-1209.63659589,0.00028219,2]
[311638950,1705276248208,-500.0,0.00027397,2]
[311638951,1705276248217,-1081.74600355,0.00028219,2]
[311638989,1705276248693,-500.0,0.00027397,2]
[311638991,1705276248702,-500.0,0.00027397,2]
[311638993,1705276248711,-500.0,0.00027671,2]
[311638995,1705276248720,-153.0,0.00027671,2]
[311638997,1705276248729,-330.41,0.00027945,2]
[311638999,1705276248738,-500.65199,0.00028219,2]
[311639286,1705277438573,-155.03875969,0.00023481,4]
[311639287,1705277438583,-155.0341075,0.000235,2]
[311639288,1705277438592,-10800.09426304,0.00024994,2]
[311639289,1705277438601,-2704.5008554,0.00024995,5]
[311639290,1705277438610,-1044.83328699,0.0002558,2]
[311639291,1705277438620,-9572.179094,0.00025581,2]
[311639292,1705277438629,-284.667272,0.0002574,2]
[311639293,1705277438640,-1566.34114233,0.00026119,2]
[311639294,1705277438649,-154.6228574,0.00026849,2]
[311639295,1705277438659,-153.1880119,0.00026849,2]
[311639296,1705277438668,-441.8574589,0.00026849,2]
[311639297,1705277438676,-169.1879247,0.00026849,2]
[311639298,1705277438685,-154.1994419,0.00026849,2]
[311639299,1705277438694,-153.0,0.00026878,2]
[311639300,1705277438703,-153.0,0.00026878,2]
[311639301,1705277438712,-153.0,0.00027178,2]
[311639302,1705277438721,-153.0,0.0002726,2]
[311639303,1705277438730,-153.0,0.0002726,2]
[311639304,1705277438739,-176.58117844,0.00027297,2]
[311639305,1705277438748,-153.0,0.000273,2]
[311639306,1705277438757,-153.0,0.000273,2]
[311639307,1705277438766,-1045.00060392,0.00027395,2]
[311639308,1705277438775,-197.56273371,0.00027395,2]
[311639309,1705277438784,-848.51221584,0.00027396,2]
[311639310,1705277438793,-500.0,0.00027397,2]
[311639311,1705277438802,-500.0,0.00027397,2]
[311639312,1705277438811,-500.0,0.00027397,2]
[311639313,1705277438819,-500.0,0.00027397,2]
[311639314,1705277438828,-1623.89718729,0.00027397,2]
[311639315,1705277438837,-500.0,0.00027397,2]
[311639316,1705277438846,-500.0,0.00027397,2]
[311639317,1705277438854,-500.0,0.00027397,2]
[311639318,1705277438863,-500.0,0.00027397,2]
[311639319,1705277438872,-430.65475799,0.00027397,2]
[311639320,1705277438881,-500.0,0.00027397,2]
[311639321,1705277438892,-500.0,0.00027397,2]
[311639322,1705277438900,-500.0,0.00027397,2]
[311639323,1705277438910,-554.89,0.00027397,2]
[311639324,1705277438918,-500.0,0.00027397,2]
[311639325,1705277438927,-500.0,0.00027397,2]
[311639326,1705277438936,-500.0,0.00027397,2]
[311639327,1705277438945,-602.80007239,0.00027397,2]
[311639328,1705277438954,-500.0,0.00027397,2]
[311639329,1705277438963,-500.0,0.00027397,2]
[311639330,1705277438971,-503.48256787,0.00027397,2]
[311639331,1705277438980,-500.0,0.00027397,2]
[311639332,1705277438989,-500.0,0.00027397,2]
[311639333,1705277438998,-273.15317203,0.00027397,2]
[311639334,1705277439007,-500.0,0.00027397,2]
[311639335,1705277439016,-256.62702142,0.00027397,2]
[311639336,1705277439024,-526.06326332,0.00027397,2]
[311639337,1705277439033,-500.0,0.00027397,2]
[311639338,1705277439042,-500.0,0.00027397,2]
[311639339,1705277439051,-425.82178515,0.00027397,2]
[311639340,1705277439060,-500.0,0.00027397,2]
[311639341,1705277439069,-500.0,0.00027397,2]
[311639342,1705277439078,-178.22237301,0.00027397,2]
[311639343,1705277439086,-500.0,0.00027397,2]
[311639344,1705277439096,-500.0,0.00027397,2]
[311639345,1705277439104,-500.0,0.00027397,2]
[311639346,1705277439113,-500.0,0.00027397,2]
[311639347,1705277439122,-1000.0,0.00027397,2]
[311639348,1705277439131,-572.34395798,0.00027397,2]
[311639349,1705277439142,-500.0,0.00027397,2]
[311639350,1705277439151,-500.0,0.00027397,2]
[311639351,1705277439161,-500.0,0.00027397,2]
[311639352,1705277439170,-500.0,0.00027397,2]
[311639353,1705277439180,-500.0,0.00027397,2]
[311639354,1705277439189,-500.0,0.00027397,2]
[311639355,1705277439197,-500.0,0.00027397,2]
[311639356,1705277439206,-382.37264958,0.00027397,2]
[311639357,1705277439215,-500.0,0.00027397,2]
[311639358,1705277439224,-500.0,0.00027397,2]
[311639359,1705277439233,-500.0,0.00027397,2]
[311639360,1705277439242,-500.0,0.00027397,2]
[311639361,1705277439250,-500.0,0.00027397,2]
[311639362,1705277439259,-1406.84,0.00027397,2]
[311639363,1705277439268,-1275.71,0.00027397,2]
[311639364,1705277439277,-500.0,0.00027397,2]
[311639365,1705277439287,-500.0,0.00027397,2]
[311639366,1705277439295,-500.0,0.00027397,2]
[311639367,1705277439305,-500.0,0.00027397,2]
[311639368,1705277439314,-500.0,0.00027397,2]
[311639369,1705277439324,-300.78084673,0.00027397,2]
[311639370,1705277439333,-500.0,0.00027397,2]
[311639371,1705277439342,-500.0,0.00027397,2]
[311639372,1705277439351,-500.0,0.00027397,2]
[311639373,1705277439360,-500.0,0.00027397,2]
[311639374,1705277439369,-500.0,0.00027397,2]
[311639375,1705277439380,-465.19455805,0.00027397,2]
[311639377,1705277439391,-202.62779638,0.00027397,2]
[311639379,1705277439401,-500.0,0.00027397,2]
[311639380,1705277439411,-156.69701494,0.00027397,2]
[311639382,1705277439420,-500.0,0.00027397,2]
[311639384,1705277439429,-500.0,0.00027397,2]
[311639386,1705277439439,-500.0,0.00027397,2]
[311639388,1705277439449,-886.5,0.00027397,2]
[311639389,1705277439459,-500.0,0.00027397,2]
[311639391,1705277439468,-510.02881008,0.00027397,2]
[311639393,1705277439478,-516.89721393,0.00027397,2]
[311639395,1705277439488,-500.0,0.00027397,2]
[311639397,1705277439500,-500.0,0.00027397,2]
[311639398,1705277439510,-325.94231733,0.00027397,2]
[311639399,1705277439523,-614.02729468,0.00027397,2]
[311639400,1705277439532,-500.0,0.00027397,2]
[311639402,1705277439541,-708.57,0.00027397,2]
[311639404,1705277439551,-627.38641808,0.00027397,2]
[311639406,1705277439562,-551.67974669,0.00027397,2]
[311639408,1705277439571,-500.0,0.00027397,2]
[311639410,1705277439580,-500.0,0.00027397,2]
[311639412,1705277439590,-500.0,0.00027397,2]
[311639414,1705277439601,-500.0,0.00027397,2]
[311639416,1705277439611,-500.0,0.00027397,2]
[311639418,1705277439620,-500.0,0.00027397,2]
[311639420,1705277439629,-500.0,0.00027397,2]
[311639422,1705277439641,-500.0,0.00027397,2]
[311639424,1705277439650,-571.68312973,0.00027397,2]
[311639426,1705277439660,-500.0,0.00027397,2]
[311639428,1705277439669,-7856.90497968,0.00027397,10]
[311639430,1705277439678,-1620.33,0.00027397,2]
[311639432,1705277439687,-427.50462992,0.00027397,2]
[311639434,1705277439697,-500.0,0.00027397,2]
[311639436,1705277439706,-500.0,0.00027397,2]
[311639438,1705277439715,-500.0,0.00027397,2]
[311639440,1705277439725,-506.31192834,0.00027397,2]
[311639442,1705277439734,-530.50063777,0.00027397,2]